Workbook

Sheet Факт
A1: Месяц | B1: Доходы | C1: Расходы | E1: План на 2015 | H1: Планируемая прибыль на 2015
A2: 2014-01-01 | B2: 265987 | C2: 72313
A3: 2014-02-01 | B3: 268848 | C3: 108977
A4: 2014-03-01 | B4: 272418 | C4: 50521
A5: 2014-04-01 | B5: 279360 | C5: 55664
A6: 2014-05-01 | B6: 414616 | C6: 90731
A7: 2014-06-01 | B7: 423060 | C7: 98872
A8: 2014-07-01 | B8: 484097 | C8: 62171
A9: 2014-08-01 | B9: 519379 | C9: 77725
A10: 2014-09-01 | B10: 544594 | C10: 108353
A11: 2014-10-01 | B11: 611830 | C11: 86971
A12: 2014-11-01 | B12: 619521 | C12: 99048
A13: 2014-12-01 | B13: 656550 | C13: 111920
A14: 2015-01-01 | B14: 680751 | C14: 79764
A15: 2015-02-01 | B15: 463293 | C15: 67172
A16: 2015-03-01 | B16: 628110 | C16: 62373
A17: 2015-04-01 | B17: 649445 | C17: 73736
A18: 2015-05-01 | B18: 548145 | C18: 92135
A19: 2015-06-01 | B19: 637617 | C19: 87145
A20: 2015-07-01 | B20: 624081 | C20: 93898
A21: 2015-08-01 | B21: 747520 | C21: 55153
A22: 2015-09-01 | B22: 359450 | C22: 54436
A23: 2015-10-01 | B23: 561449 | C23: 64346
A24: 2015-11-01 | B24: 423172 | C24: 48612
A25: 2015-12-01 | B25: 655057 | C25: 54960
A26: Итог: | B26: =SUM(B2:B25) -> 12338350 | C26: =SUM(C2:C25) -> 1856996

Sheet План
A1: Месяц | B1: Доходы | C1: Расходы
A2: 2015-01-01 | B2: =FORECAST(ROW(A1),Факт!$B$2:$B$25,{1,2,3,4,5,6,7,8,9,10,11,12,13,14,15,16,17,18,19,20,21,22,23,24}) -> 369258.6467 | C2: =FORECAST(ROW(A1),Факт!$C$2:$C$25,{1,2,3,4,5,6,7,8,9,10,11,12,13,14,15,16,17,18,19,20,21,22,23,24}) -> 87934.86333
A3: 2015-02-01 | B3: =FORECAST(ROW(A2),Факт!$B$2:$B$25,{1,2,3,4,5,6,7,8,9,10,11,12,13,14,15,16,17,18,19,20,21,22,23,24}) -> 381853.3658 | C3: =FORECAST(ROW(A2),Факт!$C$2:$C$25,{1,2,3,4,5,6,7,8,9,10,11,12,13,14,15,16,17,18,19,20,21,22,23,24}) -> 87016.59986
A4: 2015-03-01 | B4: =FORECAST(ROW(A3),Факт!$B$2:$B$25,{1,2,3,4,5,6,7,8,9,10,11,12,13,14,15,16,17,18,19,20,21,22,23,24}) -> 394448.0849 | C4: =FORECAST(ROW(A3),Факт!$C$2:$C$25,{1,2,3,4,5,6,7,8,9,10,11,12,13,14,15,16,17,18,19,20,21,22,23,24}) -> 86098.33638
A5: 2015-04-01 | B5: =FORECAST(ROW(A4),Факт!$B$2:$B$25,{1,2,3,4,5,6,7,8,9,10,11,12,13,14,15,16,17,18,19,20,21,22,23,24}) -> 407042.8041 | C5: =FORECAST(ROW(A4),Факт!$C$2:$C$25,{1,2,3,4,5,6,7,8,9,10,11,12,13,14,15,16,17,18,19,20,21,22,23,24}) -> 85180.0729
A6: 2015-05-01 | B6: =FORECAST(ROW(A5),Факт!$B$2:$B$25,{1,2,3,4,5,6,7,8,9,10,11,12,13,14,15,16,17,18,19,20,21,22,23,24}) -> 419637.5232 | C6: =FORECAST(ROW(A5),Факт!$C$2:$C$25,{1,2,3,4,5,6,7,8,9,10,11,12,13,14,15,16,17,18,19,20,21,22,23,24}) -> 84261.80942
A7: 2015-06-01 | B7: =FORECAST(ROW(A6),Факт!$B$2:$B$25,{1,2,3,4,5,6,7,8,9,10,11,12,13,14,15,16,17,18,19,20,21,22,23,24}) -> 432232.2423 | C7: =FORECAST(ROW(A6),Факт!$C$2:$C$25,{1,2,3,4,5,6,7,8,9,10,11,12,13,14,15,16,17,18,19,20,21,22,23,24}) -> 83343.54594
A8: 2015-07-01 | B8: =FORECAST(ROW(A7),Факт!$B$2:$B$25,{1,2,3,4,5,6,7,8,9,10,11,12,13,14,15,16,17,18,19,20,21,22,23,24}) -> 444826.9614 | C8: =FORECAST(ROW(A7),Факт!$C$2:$C$25,{1,2,3,4,5,6,7,8,9,10,11,12,13,14,15,16,17,18,19,20,21,22,23,24}) -> 82425.28246
A9: 2015-08-01 | B9: =FORECAST(ROW(A8),Факт!$B$2:$B$25,{1,2,3,4,5,6,7,8,9,10,11,12,13,14,15,16,17,18,19,20,21,22,23,24}) -> 457421.6806 | C9: =FORECAST(ROW(A8),Факт!$C$2:$C$25,{1,2,3,4,5,6,7,8,9,10,11,12,13,14,15,16,17,18,19,20,21,22,23,24}) -> 81507.01899
A10: 2015-09-01 | B10: =FORECAST(ROW(A9),Факт!$B$2:$B$25,{1,2,3,4,5,6,7,8,9,10,11,12,13,14,15,16,17,18,19,20,21,22,23,24}) -> 470016.3997 | C10: =FORECAST(ROW(A9),Факт!$C$2:$C$25,{1,2,3,4,5,6,7,8,9,10,11,12,13,14,15,16,17,18,19,20,21,22,23,24}) -> 80588.75551
A11: 2015-10-01 | B11: =FORECAST(ROW(A10),Факт!$B$2:$B$25,{1,2,3,4,5,6,7,8,9,10,11,12,13,14,15,16,17,18,19,20,21,22,23,24}) -> 482611.1188 | C11: =FORECAST(ROW(A10),Факт!$C$2:$C$25,{1,2,3,4,5,6,7,8,9,10,11,12,13,14,15,16,17,18,19,20,21,22,23,24}) -> 79670.49203
A12: 2015-11-01 | B12: =FORECAST(ROW(A11),Факт!$B$2:$B$25,{1,2,3,4,5,6,7,8,9,10,11,12,13,14,15,16,17,18,19,20,21,22,23,24}) -> 495205.838 | C12: =FORECAST(ROW(A11),Факт!$C$2:$C$25,{1,2,3,4,5,6,7,8,9,10,11,12,13,14,15,16,17,18,19,20,21,22,23,24}) -> 78752.22855
A13: 2015-12-01 | B13: =FORECAST(ROW(A12),Факт!$B$2:$B$25,{1,2,3,4,5,6,7,8,9,10,11,12,13,14,15,16,17,18,19,20,21,22,23,24}) -> 507800.5571 | C13: =FORECAST(ROW(A12),Факт!$C$2:$C$25,{1,2,3,4,5,6,7,8,9,10,11,12,13,14,15,16,17,18,19,20,21,22,23,24}) -> 77833.96507

Sheet Прибыль
A1: Месяц | B1: Прибыль
A2: 2015-01-01 | B2: =((План!B2-План!B2*0.18)-План!C2) -> 214857.2269
A3: 2015-02-01 | B3: =((План!B3-План!B3*0.18)-План!C3) -> 226103.1601
A4: 2015-03-01 | B4: =((План!B4-План!B4*0.18)-План!C4) -> 237349.0933
A5: 2015-04-01 | B5: =((План!B5-План!B5*0.18)-План!C5) -> 248595.0264
A6: 2015-05-01 | B6: =((План!B6-План!B6*0.18)-План!C6) -> 259840.9596
A7: 2015-06-01 | B7: =((План!B7-План!B7*0.18)-План!C7) -> 271086.8928
A8: 2015-07-01 | B8: =((План!B8-План!B8*0.18)-План!C8) -> 282332.8259
A9: 2015-08-01 | B9: =((План!B9-План!B9*0.18)-План!C9) -> 293578.7591
A10: 2015-09-01 | B10: =((План!B10-План!B10*0.18)-План!C10) -> 304824.6923
A11: 2015-10-01 | B11: =((План!B11-План!B11*0.18)-План!C11) -> 316070.6254
A12: 2015-11-01 | B12: =((План!B12-План!B12*0.18)-План!C12) -> 327316.5586
A13: 2015-12-01 | B13: =((План!B13-План!B13*0.18)-План!C13) -> 338562.4918
